bitfinex/quotes_BTCUSD_20251104
["timestamp","ask_amount","ask_price","bid_price","bid_amount"]
[1762275629356,1.58669778,102200.0,102190.0,0.02149001]
[1762275629501,0.45212689,102200.0,102190.0,0.02249001]
[1762275629705,1.21019778,102200.0,102190.0,0.02253001]
[1762275629932,4.21509172,102200.0,102190.0,0.00428001]
[1762275630122,4.55509172,102200.0,102190.0,0.00428001]
[1762275630356,0.01925007,102200.0,102190.0,0.06288726]
[1762275630564,0.31171083,102200.0,102190.0,0.01981726]
[1762275630796,4.16925172,102200.0,102190.0,0.00152726]
[1762275631000,4.60582778,102200.0,102190.0,0.00252726]
[1762275631202,4.16635778,102200.0,102190.0,0.02081726]
[1762275631640,0.10376605,102200.0,102190.0,0.3476434]
[1762275631865,0.29946076,102200.0,102190.0,0.3476434]
[1762275632055,0.34118076,102200.0,102190.0,0.09719954]
[1762275632266,3.34118076,102200.0,102190.0,0.03870954]
[1762275632476,4.50244165,102200.0,102190.0,0.00252726]
[1762275632687,4.59701771,102200.0,102190.0,0.00252726]
[1762275633398,4.61120058,102200.0,102190.0,0.00252726]
[1762275634317,4.64958906,102200.0,102190.0,0.00252726]
[1762275634880,4.72387712,102200.0,102190.0,0.00252726]
[1762275635775,4.64958906,102200.0,102190.0,0.00252726]
[1762275635953,3.89151817,102200.0,102190.0,0.00252726]
[1762275636155,4.64958906,102200.0,102190.0,0.00252726]
[1762275636543,4.58639906,102200.0,102190.0,0.00252726]
[1762275636751,4.450103,102200.0,102190.0,0.03870954]
[1762275636952,4.450103,102200.0,102190.0,0.00252726]
[1762275637343,4.491823,102200.0,102190.0,0.00252726]
[1762275638031,4.555013,102200.0,102190.0,0.00252726]
[1762275638540,4.35790755,102200.0,102190.0,0.00252726]
[1762275638848,4.45248361,102200.0,102190.0,0.00252726]
[1762275639168,5.01344905,102200.0,102190.0,0.00252726]
[1762275639796,5.01344905,102200.0,102190.0,1e-08]
[1762275640525,3.89151817,102200.0,102190.0,1e-08]
[1762275640952,5.01344905,102200.0,102190.0,1e-08]
[1762275642047,3.8930593,102190.0,102180.0,0.00715001]
[1762275642254,3.5099384,102190.0,102180.0,0.00715001]
[1762275642685,4.07090384,102190.0,102180.0,0.00715001]
[1762275642797,0.53573302,102180.0,102170.0,0.0002]
[1762275642999,3.67188755,102180.0,102170.0,0.0002]
[1762275643198,3.77679755,102180.0,102170.0,0.0002]
[1762275643403,4.45824105,102180.0,102170.0,0.0002]
[1762275643924,1.35333105,102180.0,102170.0,0.0002]
[1762275644129,1.01433105,102180.0,102170.0,0.0434]
[1762275644332,1.05605105,102180.0,102170.0,0.0032]
[1762275644521,1.11924105,102180.0,102170.0,0.0032]
[1762275644719,1.05605105,102180.0,102170.0,0.0032]
[1762275644957,1.05605105,102180.0,102170.0,0.0022]
[1762275644958,0.93878317,102180.0,102170.0,0.0022]
[1762275645374,1.38369317,102180.0,102170.0,0.0022]
[1762275645559,0.71881773,102180.0,102170.0,0.09917]
[1762275645766,1.27978317,102180.0,102170.0,0.04344]
[1762275645967,1.38469317,102180.0,102170.0,0.00328]
[1762275646167,1.41607923,102180.0,102170.0,0.00332]
[1762275646681,1.27978317,102180.0,102170.0,0.0034]
[1762275646884,1.32150317,102180.0,102170.0,0.00344]
[1762275647054,1.38469317,102180.0,102170.0,0.00344]
[1762275647272,1.38469317,102180.0,102170.0,0.00348]
[1762275647486,1.38469317,102180.0,102170.0,0.00352]
[1762275647685,1.47926923,102180.0,102170.0,0.00352]
[1762275647934,4.48438092,102180.0,102170.0,0.00401461]
[1762275648355,4.46649241,102180.0,102170.0,0.00401461]
[1762275648582,3.53575217,102170.0,102160.0,9.8e-05]
[1762275648788,4.25364776,102170.0,102160.0,9.8e-05]
[1762275648996,4.90808364,102170.0,102160.0,9.8e-05]
[1762275649198,4.89016108,102170.0,102160.0,9.8e-05]
[1762275649403,3.53577133,102160.0,102150.0,0.0401124]
[1762275649613,4.26707692,102160.0,102150.0,0.0401124]
[1762275649874,4.24061581,102160.0,102150.0,0.04060717]
[1762275650089,4.36213916,102160.0,102150.0,0.04060717]
[1762275650305,4.38006883,102160.0,102150.0,0.04060717]
[1762275650558,1.22230277,102160.0,102150.0,0.04944717]
[1762275650789,0.083846,102160.0,102150.0,0.37612995]
[1762275651003,0.37738338,102160.0,102150.0,0.12582945]
[1762275651218,0.038966,102160.0,102150.0,0.37512995]
[1762275651426,0.02103633,102160.0,102150.0,0.71512995]
[1762275651628,0.00048618,102160.0,102150.0,0.71516995]
[1762275651831,0.00048618,102160.0,102150.0,0.37516995]
[1762275652052,0.00448618,102160.0,102150.0,0.37620995]
[1762275652260,0.00448618,102160.0,102150.0,0.37624995]
[1762275652470,0.00848618,102160.0,102150.0,1.29821537]
[1762275652673,0.68055924,102200.0,102190.0,0.23189614]
[1762275652881,0.79309189,102200.0,102190.0,0.34515229]
[1762275653128,0.89421054,102200.0,102190.0,0.02023615]
[1762275653354,1.13644449,102200.0,102190.0,0.09941843]
[1762275653580,1.25377128,102200.0,102190.0,0.05641843]
[1762275653785,4.86472713,102200.0,102190.0,0.00014615]
[1762275653985,0.19577133,102160.0,102150.0,0.0491924]
[1762275654303,0.33849738,102160.0,102150.0,0.04933823]
[1762275654538,0.19577133,102160.0,102150.0,0.09133823]
[1762275654759,0.19577133,102160.0,102150.0,0.13935823]
[1762275654980,0.005,102160.0,102150.0,0.33514873]
[1762275655184,0.29353738,102160.0,102150.0,0.33414873]
[1762275655485,0.38811344,102160.0,102150.0,0.14035823]
[1762275655697,0.29453738,102160.0,102150.0,0.32131101]
[1762275655906,0.29453738,102160.0,102150.0,0.32031101]
[1762275656120,0.29453738,102160.0,102150.0,0.12752051]
[1762275656121,0.29553738,102160.0,102150.0,0.12752051]
[1762275656332,0.29553738,102160.0,102150.0,0.12652051]
[1762275656545,0.85650282,102160.0,102150.0,0.32231101]
[1762275656754,0.85650282,102160.0,102150.0,0.37233101]
[1762275656755,0.29553738,102160.0,102150.0,0.37233101]
[1762275657177,0.29553738,102160.0,102150.0,0.17654051]
[1762275657386,0.85650282,102160.0,102150.0,0.08352051]
[1762275657597,1.43362529,102160.0,102150.0,0.03749823]
[1762275658990,5.03951073,102160.0,102150.0,0.03749823]
[1762275659213,4.47854529,102160.0,102150.0,0.03749823]
[1762275659621,0.19582884,102130.0,102120.0,0.15381034]
[1762275659820,0.19597456,102130.0,102120.0,0.19584802]
[1762275659955,0.00014572,102130.0,102120.0,0.19584802]
[1762275660166,0.19597456,102130.0,102110.0,0.79005288]
[1762275660367,0.00014572,102130.0,102120.0,0.19584802]
[1762275660589,0.00014572,102130.0,102120.0,0.2320303]
[1762275660994,0.19597456,102130.0,102120.0,0.2320303]
[1762275661194,0.19597456,102130.0,102120.0,0.2330303]
[1762275661465,0.00114572,102130.0,102120.0,0.2330303]
[1762275661878,0.19697456,102130.0,102120.0,0.2330303]
[1762275662292,0.00314572,102130.0,102120.0,0.2340303]
[1762275662710,0.00314572,102130.0,102120.0,0.33179635]
[1762275662926,0.00314572,102130.0,102120.0,0.2340303]
[1762275663135,0.0211167,102130.0,102120.0,0.2340303]
[1762275663340,0.00314572,102130.0,102120.0,0.2340303]
[1762275663556,0.00300572,102130.0,102120.0,0.89276179]
[1762275663760,0.00300572,102130.0,102120.0,1.29772177]
[1762275664175,0.00300572,102130.0,102120.0,0.72675634]
[1762275664381,0.00300572,102130.0,102120.0,1.28895905]
[1762275664582,0.00200572,102130.0,102120.0,1.25177677]
[1762275664788,5.72e-06,102130.0,102120.0,0.68981133]
[1762275665009,0.00300572,102130.0,102120.0,0.69081133]
[1762275665216,1e-08,102130.0,102120.0,1.46277676]
[1762275665425,1e-08,102130.0,102120.0,2.0237422]
[1762275665653,1e-08,102130.0,102120.0,1.46277676]
[1762275666083,1e-08,102130.0,102120.0,1.25277677]
[1762275666301,1e-08,102130.0,102120.0,0.70181132]
[1762275666519,1e-08,102130.0,102120.0,0.68181134]
[1762275666729,1e-08,102130.0,102120.0,0.24400529]
[1762275666947,1e-08,102130.0,102120.0,0.24300529]
[1762275667162,0.09776605,102140.0,102130.0,0.19582884]
[1762275667365,0.09776605,102140.0,102130.0,0.19631502]
[1762275667776,0.29357572,102140.0,102130.0,0.2324973]
[1762275668187,0.09776605,102140.0,102130.0,0.2324973]
[1762275668402,0.30557572,102140.0,102130.0,0.2334973]
[1762275668611,0.40015178,102140.0,102130.0,0.00148618]
[1762275668815,0.40015178,102140.0,102130.0,0.19731502]
[1762275669022,0.012,102140.0,102130.0,0.19731502]
[1762275669228,0.012,102140.0,102130.0,0.2334973]
[1762275670027,0.20780967,102140.0,102130.0,0.00148618]
[1762275670162,0.012,102140.0,102130.0,0.19731502]
[1762275670363,0.012,102140.0,102130.0,0.2334973]
[1762275671024,0.006,102140.0,102130.0,0.2324973]
[1762275671231,0.20280967,102140.0,102130.0,0.2344973]
[1762275671807,0.006,102140.0,102130.0,0.03666846]
[1762275672005,0.013,102140.0,102130.0,0.23548612]
[1762275672219,0.013,102140.0,102130.0,0.2344973]
[1762275672766,0.013,102140.0,102130.0,0.23548702]
[1762275674824,0.013,102140.0,102130.0,0.23448702]
[1762275675033,0.013,102140.0,102130.0,0.33225307]
[1762275675240,0.013,102140.0,102130.0,0.33125307]
[1762275675912,10.013,102140.0,102130.0,0.33025307]
[1762275676375,10.20880967,102140.0,102130.0,0.03665818]
[1762275676575,10.20880967,102140.0,102130.0,0.00298972]
[1762275677010,10.20880967,102140.0,102130.0,0.19781856]
[1762275677216,10.20880967,102140.0,102130.0,0.00198972]
[1762275677550,10.20180967,102140.0,102130.0,0.00098972]
[1762275677750,13.9517889,102140.0,102130.0,0.00398972]
[1762275677954,13.91309117,102140.0,102130.0,0.00398972]
[1762275678158,10.85235117,102140.0,102130.0,0.00798972]
[1762275678376,10.77948914,102140.0,102130.0,0.00798972]
[1762275678599,10.75877511,102140.0,102130.0,0.20381856]
[1762275678816,10.75877511,102140.0,102130.0,0.00798972]
[1762275679035,0.19584802,102120.0,102110.0,0.57330094]
[1762275679251,0.00048717,102120.0,102110.0,0.74120194]
[1762275679700,0.00048717,102120.0,102110.0,0.73620194]
[1762275680341,0.00048717,102120.0,102110.0,1.43985343]
[1762275680561,10.32589276,102140.0,102110.0,0.85249907]
[1762275680795,10.32589276,102140.0,102130.0,0.19582884]
[1762275680997,10.52170243,102140.0,102130.0,0.19582884]
[1762275681117,10.32589276,102140.0,102130.0,0.19582884]
[1762275681334,9.76492732,102140.0,102130.0,0.19582884]
[1762275681738,9.76492732,102140.0,102130.0,0.23201112]
[1762275682405,9.76392732,102140.0,102130.0,0.23201112]
[1762275682826,9.95973699,102140.0,102130.0,0.23201112]
[1762275683044,10.52070243,102140.0,102130.0,0.03618228]
[1762275683315,10.52370243,102140.0,102120.0,0.19584786]
[1762275683491,10.52370243,102140.0,102130.0,0.23201112]
[1762275683717,10.52570243,102140.0,102130.0,0.23801112]
[1762275683934,9.76892732,102140.0,102130.0,0.23801112]
[1762275684379,9.96473699,102140.0,102130.0,0.23801112]
[1762275684625,10.52570243,102140.0,102130.0,0.04218228]
[1762275685091,10.62027849,102140.0,102130.0,0.006]
[1762275685550,10.52570243,102140.0,102130.0,0.006]
[1762275686002,9.96273699,102140.0,102130.0,0.006]
[1762275686214,9.96273699,102140.0,102130.0,0.20182884]
[1762275686451,10.52370243,102140.0,102130.0,0.20182884]
[1762275686676,10.52370243,102140.0,102130.0,0.006]
[1762275686892,10.61827849,102140.0,102130.0,0.006]
[1762275687562,10.67644849,102140.0,102130.0,0.006]
[1762275687779,10.72132849,102140.0,102130.0,0.006]
[1762275687988,10.18619114,102140.0,102130.0,0.006]
[1762275688196,10.59441052,102140.0,102130.0,0.006]
[1762275688438,10.65258052,102140.0,102130.0,0.006]
[1762275688647,10.05142263,102140.0,102130.0,0.006]
[1762275688873,10.61238807,102140.0,102130.0,0.006]
[1762275689076,10.59441052,102140.0,102130.0,0.006]
[1762275689287,10.74715658,102140.0,102130.0,0.006]
[1762275689506,3.0,102130.0,102120.0,0.00024751]
[1762275689714,1.0482455,102130.0,102120.0,0.00024751]
[1762275689936,0.48728006,102130.0,102120.0,0.00024751]
[1762275690202,1.04586156,102130.0,102120.0,0.00024751]
[1762275690416,1.12211639,102130.0,102120.0,0.00024751]
[1762275690640,1.14282004,102130.0,102120.0,0.00024751]
[1762275691105,1.14382004,102130.0,102120.0,0.00024751]
[1762275691315,0.90740398,102130.0,102120.0,0.00024751]
[1762275691541,1.02789033,102130.0,102120.0,0.00324751]
[1762275691757,1.38858941,102130.0,102120.0,0.00324751]
[1762275692504,1.38658941,102130.0,102120.0,0.00024751]
[1762275692801,1.40355297,102130.0,102120.0,0.00024751]
[1762275693068,1.50012903,102130.0,102120.0,0.00324751]
[1762275693296,1.14516547,102130.0,102120.0,0.00324751]
[1762275693519,1.16312191,102130.0,102120.0,0.00324751]
[1762275693720,0.48704003,102130.0,102120.0,0.00324751]
[1762275693932,0.90854941,102130.0,102120.0,0.00324751]
[1762275694151,0.99358941,102130.0,102120.0,0.00324751]
[1762275694362,0.22152792,102130.0,102120.0,0.19909553]
[1762275694570,0.88785033,102130.0,102120.0,0.00324751]
[1762275694772,0.90853101,102130.0,102120.0,0.00324751]
[1762275695180,0.92497844,102130.0,102120.0,0.00324751]
[1762275695615,0.92497844,102130.0,102120.0,0.19909553]
[1762275695836,0.89668844,102130.0,102120.0,0.00324751]
[1762275696076,0.85956033,102130.0,102120.0,0.00324751]
[1762275696289,0.88023509,102130.0,102120.0,0.00328751]
[1762275696499,0.88785033,102130.0,102120.0,0.00328751]
[1762275696718,0.88023368,102130.0,102120.0,0.00332751]
[1762275697131,0.85956033,102130.0,102120.0,0.00336751]
[1762275697345,0.85956033,102130.0,102120.0,0.00340751]
[1762275697553,0.94868689,102130.0,102120.0,0.00340751]
[1762275697769,0.94868689,102130.0,102120.0,0.00344751]
[1762275698011,0.68440805,102130.0,102120.0,0.19933553]
[1762275698216,0.005,102130.0,102120.0,0.23551781]
[1762275698420,0.85956033,102130.0,102120.0,0.00348751]
[1762275698895,0.76179428,102130.0,102120.0,0.19933553]
[1762275699111,0.20082884,102130.0,102120.0,0.19933553]
[1762275699336,0.85956033,102130.0,102120.0,0.19933553]
[1762275699750,0.005,102130.0,102120.0,0.19933553]
[1762275699976,0.20082884,102130.0,102120.0,0.19933553]
[1762275700819,0.29859489,102130.0,102120.0,0.19933553]
[1762275703139,0.20082884,102130.0,102120.0,0.19933553]
[1762275703351,0.29859489,102130.0,102120.0,0.00352751]
[1762275703555,0.44215957,102130.0,102120.0,0.00352751]
[1762275703795,1.107806,102130.0,102120.0,0.00356751]
[1762275703973,1.204966,102130.0,102120.0,0.00360751]
[1762275704190,1.204966,102130.0,102120.0,0.00364751]
[1762275704416,1.29954206,102130.0,102120.0,0.00368751]
[1762275704619,1.29954206,102130.0,102120.0,0.00274751]
[1762275704834,0.22152746,102130.0,102120.0,0.19859553]
[1762275705061,0.12346467,102130.0,102120.0,0.19859553]
[1762275705270,0.31929351,102130.0,102120.0,0.19859553]
[1762275705476,0.29859489,102130.0,102120.0,0.19859553]
[1762275705693,0.36704489,102130.0,102120.0,0.00274751]
[1762275705905,1.12726738,102130.0,102120.0,0.00274751]
[1762275706114,1.12726738,102130.0,102120.0,0.19859553]
[1762275706115,0.29859489,102130.0,102120.0,0.19859553]
[1762275706799,0.005,102130.0,102120.0,0.19859553]
[1762275707007,0.20082884,102130.0,102120.0,0.19859553]
[1762275707223,0.29859489,102130.0,102120.0,0.00274751]
[1762275707432,0.32688489,102130.0,102120.0,0.00274751]
[1762275707674,0.29859489,102130.0,102120.0,0.00274751]
[1762275708109,0.3242901,102130.0,102120.0,0.00274751]
[1762275708537,0.3242901,102130.0,102120.0,0.00278751]
[1762275708774,0.2241572,102110.0,102080.0,0.33568569]
[1762275708994,3.56258357,102090.0,102080.0,0.31357669]
[1762275709218,4.36146858,102090.0,102080.0,0.31357669]
[1762275709437,4.45860932,102090.0,102080.0,0.31357669]
[1762275709658,4.55318538,102090.0,102080.0,0.31357669]
[1762275710089,1.38527221,102090.0,102080.0,0.31357669]
[1762275710306,1.1188844,102090.0,102080.0,0.31357669]
[1762275710740,1.0187244,102090.0,102080.0,0.31361669]
[1762275710953,1.0588844,102090.0,102080.0,0.31361669]
[1762275711166,1.0588844,102090.0,102080.0,0.31365669]
[1762275711379,1.0588844,102090.0,102080.0,0.31569669]
[1762275711380,1.21046046,102090.0,102080.0,0.31569669]
[1762275711624,1.21046046,102090.0,102080.0,0.31573669]
[1762275711841,1.21046046,102090.0,102080.0,0.31377669]
[1762275712051,0.79451249,102090.0,102080.0,0.50978145]
[1762275712267,0.006,102090.0,102080.0,0.23503918]
[1762275712481,0.29967162,102090.0,102080.0,0.23503918]
[1762275712689,0.10976605,102090.0,102080.0,0.23703918]
[1762275712924,0.30567162,102090.0,102080.0,0.23703918]
[1762275713147,0.41605028,102090.0,102080.0,0.23703918]
[1762275713357,0.32781162,102090.0,102080.0,0.04111442]
[1762275713572,0.32981162,102090.0,102080.0,0.04111442]
[1762275713783,0.32981162,102090.0,102080.0,0.23703918]
[1762275714008,0.09976605,102090.0,102080.0,0.23503918]
[1762275714238,0.002,102090.0,102080.0,0.27122146]
[1762275714447,0.004,102090.0,102080.0,0.27422146]
[1762275714896,0.004,102090.0,102080.0,0.37297795]
[1762275715117,0.004,102090.0,102080.0,1.13320044]
[1762275715334,0.004,102090.0,102080.0,0.37297795]
[1762275715834,0.002,102090.0,102080.0,0.03717272]
[1762275716090,0.002,102090.0,102060.0,0.0032]
[1762275716091,0.19594396,102070.0,102060.0,0.0032]
[1762275716297,0.25056097,102100.0,102070.0,0.19593968]
[1762275716298,0.20568097,102100.0,102070.0,0.19593968]
[1762275716501,0.19590557,102090.0,102070.0,0.19594371]
[1762275716709,0.19594396,102070.0,102060.0,0.04812]
[1762275716923,0.19594396,102070.0,102060.0,0.0032]
[1762275717129,1.0820533,102080.0,102060.0,0.0032]
[1762275717369,0.19608992,102070.0,102060.0,0.0032]
[1762275717590,0.24788199,102070.0,102060.0,0.0032]
[1762275718222,0.00214596,102070.0,102060.0,0.20316315]
[1762275718637,0.00314596,102070.0,102060.0,0.20016315]
[1762275718850,0.00314596,102070.0,102060.0,0.23634543]
[1762275719063,0.00314596,102070.0,102060.0,0.23834543]
[1762275719064,0.00514596,102070.0,102060.0,0.23834543]
[1762275719275,0.00514596,102070.0,102060.0,0.23838543]
[1762275719510,0.00214596,102070.0,102060.0,0.23738543]
[1762275719723,0.00214596,102070.0,102060.0,0.23742543]
[1762275719938,0.00314596,102070.0,102060.0,0.23846543]
[1762275720147,0.00014596,102070.0,102060.0,0.23546543]
[1762275720355,0.00014596,102070.0,102060.0,0.99572792]
[1762275720592,0.01014596,102070.0,102060.0,0.24154543]
[1762275721007,0.01014596,102070.0,102060.0,0.20536315]
[1762275721212,0.00814596,102070.0,102060.0,0.20036315]
[1762275721421,0.30585597,102070.0,102060.0,0.20236315]
[1762275721629,0.29785597,102070.0,102060.0,0.0054]
[1762275722057,0.00614596,102070.0,102060.0,0.20085857]
[1762275722272,0.00014596,102070.0,102060.0,0.20185857]
[1762275722481,0.00714596,102070.0,102060.0,0.99826334]
[1762275722693,0.17451584,102100.0,102070.0,0.2321144]
[1762275722895,0.29367252,102090.0,102070.0,0.23260646]
[1762275723128,0.29367162,102090.0,102080.0,0.19592476]
[1762275723359,1.08471439,102100.0,102090.0,0.19590557]
[1762275723360,0.2690919,102100.0,102090.0,0.19590557]
[1762275723575,0.0206344,102100.0,102090.0,0.19590557]
[1762275723788,0.19590557,102090.0,102070.0,0.24265134]
[1762275723995,0.24256069,102100.0,102080.0,0.19592476]
[1762275724204,0.20568069,102100.0,102090.0,0.19590557]
[1762275724447,0.37648926,102110.0,102090.0,0.19590557]
[1762275724674,0.02062569,102110.0,102100.0,0.19588638]
[1762275724886,0.1958672,102110.0,102100.0,0.2056032]
[1762275725108,0.09776605,102110.0,102100.0,0.2056032]
[1762275725326,0.29363325,102110.0,102100.0,0.00971682]
[1762275725543,0.32177325,102110.0,102100.0,0.00971682]
[1762275725756,0.31425188,102110.0,102100.0,0.01071682]
[1762275725978,0.36259107,102110.0,102100.0,0.01071682]
[1762275726187,0.35759107,102110.0,102100.0,0.00971682]
[1762275726402,0.35859107,102110.0,102100.0,0.01071682]
[1762275726828,0.44987107,102110.0,102100.0,0.00971682]
[1762275727064,0.44778602,102110.0,102100.0,0.00971682]
[1762275727300,4.56590916,102110.0,102100.0,0.00975682]
[1762275727515,4.57456758,102110.0,102100.0,1e-08]
[1762275727728,4.57456758,102110.0,102100.0,4.001e-05]
[1762275727939,0.19592476,102080.0,102070.0,0.00073486]
[1762275728178,0.39777406,102080.0,102070.0,0.00073486]
[1762275728416,1.15799655,102080.0,102070.0,0.00073486]
[1762275728671,1.23352205,102080.0,102070.0,0.00073486]
[1762275728883,4.23352205,102080.0,102070.0,0.00073486]
[1762275729095,4.23291455,102080.0,102070.0,0.00073486]
[1762275729326,3.47469206,102080.0,102070.0,0.00673486]
[1762275729541,0.48032756,102080.0,102070.0,0.00773486]
[1762275729769,1.24055005,102080.0,102070.0,0.00773486]
[1762275729983,0.37786431,102080.0,102070.0,0.00073486]
[1762275730202,0.34098431,102080.0,102070.0,0.00077486]
[1762275730425,0.43326431,102080.0,102070.0,0.00077486]
[1762275730647,4.1934868,102080.0,102070.0,0.00077486]
[1762275730871,4.55137655,102080.0,102070.0,0.00081486]
[1762275731118,0.53594396,102070.0,102040.0,0.44972452]
[1762275731354,4.12899089,102050.0,102040.0,0.32457276]
[1762275731575,4.12899089,102050.0,102020.0,0.00327255]
[1762275731576,3.0,102030.0,102020.0,0.00327255]
[1762275731796,0.32747683,102030.0,102020.0,0.00327255]
[1762275732012,0.09228,102030.0,102020.0,0.00327255]
[1762275732227,0.29378682,102030.0,102020.0,0.04045164]
[1762275732438,0.38606682,102030.0,102020.0,0.00451164]
[1762275732653,0.29378682,102030.0,102020.0,0.00451164]
[1762275732861,0.2910837,102030.0,102020.0,0.09978164]
[1762275733067,0.29427369,102030.0,102020.0,0.00551164]
[1762275733285,0.29827369,102030.0,102020.0,0.04145164]
[1762275733494,0.29827369,102030.0,102020.0,0.00551164]
[1762275733913,0.29827369,102030.0,102020.0,0.00555164]
[1762275734149,0.10225292,102030.0,102020.0,0.29686163]
[1762275734361,0.19594396,102070.0,102040.0,0.20578537]
[1762275734571,0.19594396,102070.0,102040.0,0.20593133]
[1762275734572,0.29372999,102060.0,102040.0,0.20593133]
[1762275734820,0.19598236,102050.0,102040.0,0.00014596]
[1762275735002,0.98434485,102050.0,102040.0,0.00014596]
[1762275735266,1.07662485,102050.0,102040.0,0.00014596]
[1762275735483,4.09719958,102050.0,102040.0,0.00014596]
[1762275735696,4.19177564,102050.0,102040.0,0.00014596]
[1762275736136,4.20962818,102050.0,102040.0,0.00014596]
[1762275736352,4.21062818,102050.0,102040.0,0.00014596]
[1762275736786,4.65706817,102050.0,102040.0,0.00014596]
[1762275736991,4.66599021,102050.0,102040.0,1e-08]
[1762275737383,4.66799021,102050.0,102040.0,0.00804001]
[1762275737833,4.52341415,102050.0,102040.0,1e-08]
[1762275738044,0.53602077,102030.0,102020.0,0.00351255]
[1762275738264,4.54801006,102030.0,102020.0,0.00351255]
[1762275738471,4.59562033,102030.0,102020.0,0.00351255]
[1762275738676,4.59561959,102030.0,102020.0,0.00351255]
[1762275738891,4.62125055,102030.0,102020.0,0.00351255]
[1762275739107,4.62125055,102030.0,102010.0,0.00011088]
[1762275739108,0.19603999,102020.0,102010.0,0.00011088]
[1762275739318,4.13668247,102020.0,102010.0,1e-08]
[1762275739538,3.63293919,102010.0,102000.0,30.74711428]
[1762275739749,3.75539392,102010.0,102000.0,30.74711428]
[1762275739961,1.44504168,102010.0,102000.0,30.74711428]
[1762275740166,1.43504169,102010.0,102000.0,30.74711428]
[1762275740380,1.52961775,102010.0,102000.0,30.73715428]
[1762275740592,1.43504169,102010.0,102000.0,30.73888934]
[1762275740797,1.43504169,102010.0,102000.0,30.73892934]
[1762275740798,1.00276169,102010.0,102000.0,30.73892934]
[1762275741010,1.09504169,102010.0,102000.0,30.73892934]
[1762275741221,1.09504169,102010.0,102000.0,30.73896934]
[1762275741444,4.6279485,102010.0,102000.0,30.73900934]
[1762275741648,4.6592045,102010.0,102000.0,30.73900934]
[1762275741858,4.6592045,102010.0,102000.0,30.73904934]
[1762275741859,0.31506302,102010.0,102000.0,30.73904934]
[1762275742061,0.31434907,102010.0,102000.0,30.80386934]
[1762275742269,0.33730525,102010.0,102000.0,30.73912934]
[1762275742492,1.22453185,102010.0,102000.0,30.73912934]
[1762275742721,0.36296936,102010.0,102000.0,30.73912934]
[1762275742941,1.19290678,102010.0,102000.0,30.73912934]
[1762275743169,0.41218018,102010.0,102000.0,30.73912934]
[1762275743690,1.29623801,102010.0,102000.0,30.73912934]
[1762275743879,4.63423801,102010.0,102000.0,30.73912934]
[1762275744135,4.63123801,102010.0,102000.0,30.74012934]
[1762275744359,4.73242028,102010.0,102000.0,30.29594168]
[1762275744574,4.75020519,102010.0,102000.0,30.29594168]
[1762275744790,4.74820519,102010.0,102000.0,29.10199575]
[1762275745009,4.75020519,102010.0,102000.0,28.35304575]
[1762275745232,4.7624088,102010.0,102000.0,28.03661498]
[1762275745442,4.77040879,102010.0,102000.0,28.03561498]
[1762275745654,4.75320518,102010.0,102000.0,28.03561498]
[1762275745868,4.74820519,102010.0,102000.0,28.03561498]
[1762275746093,4.74820519,102010.0,102000.0,27.30753137]
[1762275746307,4.78638929,102010.0,102000.0,27.30753137]
[1762275746540,4.78240879,102010.0,102000.0,27.00090083]
[1762275746763,4.0221863,102010.0,102000.0,27.00090083]
[1762275746982,4.75820518,102010.0,102000.0,26.52096371]
[1762275748916,5.60121671,102010.0,102000.0,21.7321511]
[1762275749133,4.90999423,102010.0,102000.0,21.70270354]
[1762275749357,4.90999423,102010.0,102000.0,21.67325598]
[1762275749566,4.90999423,102010.0,102000.0,21.23176738]
[1762275749567,4.85493703,102010.0,102000.0,21.23176738]
[1762275749777,4.85484431,102010.0,102000.0,21.23176738]
[1762275750036,4.85484431,102010.0,102000.0,20.93471991]
[1762275750247,4.84794394,102010.0,102000.0,20.93371991]
[1762275750469,4.79731166,102010.0,102000.0,20.16002768]
[1762275750684,4.79900741,102010.0,102000.0,20.12957949]
[1762275750890,4.8330074,102010.0,102000.0,19.66254311]
[1762275751099,4.8330074,102010.0,102000.0,19.39672886]
[1762275751340,4.82300741,102010.0,102000.0,19.36628067]
[1762275751582,4.2324494,102010.0,102000.0,19.36628067]
[1762275752041,4.29244939,102010.0,102000.0,19.36628067]
[1762275752250,4.24244939,102010.0,102000.0,19.36628067]
[1762275752464,4.29244939,102010.0,102000.0,19.36628067]
[1762275752673,14.2324494,102010.0,102000.0,19.36628067]
[1762275752885,14.2824494,102010.0,102000.0,19.36628067]
[1762275753090,14.27944939,102010.0,102000.0,19.26985731]
[1762275753294,14.26444939,102010.0,102000.0,19.26985731]
[1762275753495,14.60944939,102010.0,102000.0,19.26985731]
[1762275753701,14.61244939,102010.0,102000.0,19.27085731]
[1762275753915,14.5974494,102010.0,102000.0,19.27085731]
[1762275754118,14.5974494,102010.0,102000.0,19.26935731]
[1762275754119,14.6014494,102010.0,102000.0,19.26935731]
[1762275754347,14.61144939,102010.0,102000.0,19.26935731]
[1762275754559,14.61144939,102010.0,102000.0,19.27035731]
[1762275754560,14.66263166,102010.0,102000.0,19.27035731]
[1762275754980,14.66263166,102010.0,102000.0,18.82195395]
[1762275755209,14.66263166,102010.0,102000.0,18.6257105]
[1762275755626,14.62644938,102010.0,102000.0,18.66522695]
[1762275755836,14.62644938,102010.0,102000.0,18.22100067]
[1762275756051,13.89567984,102010.0,102000.0,18.22100067]
[1762275756265,14.64090234,102010.0,102000.0,18.22000067]
[1762275756482,14.69062233,102010.0,102000.0,18.22000067]
[1762275756691,14.69062233,102010.0,102000.0,18.21950067]
[1762275756900,14.71762233,102010.0,102000.0,18.21950067]
[1762275757309,14.70462233,102010.0,102000.0,18.21950067]
[1762275757524,14.69062233,102010.0,102000.0,18.21950067]
[1762275757737,14.70062233,102010.0,102000.0,18.21950067]
[1762275757959,13.95239984,102010.0,102000.0,18.21850067]
[1762275758186,13.58039985,102010.0,102000.0,18.21850067]
[1762275758409,14.31116939,102010.0,102000.0,18.21750067]
[1762275758628,14.31116939,102010.0,102000.0,18.21650067]
[1762275758869,14.3011694,102010.0,102000.0,18.21650067]
[1762275759085,14.2511694,102010.0,102000.0,18.21550067]
[1762275759312,14.31116939,102010.0,102000.0,18.21450067]
[1762275759536,14.31116939,102010.0,102000.0,18.21350067]
[1762275759752,14.33816939,102010.0,102000.0,18.21250067]
[1762275759980,14.66416939,102010.0,102000.0,18.21050067]
[1762275760202,14.65716939,102010.0,102000.0,18.20950067]
[1762275760422,14.46313238,102010.0,102000.0,18.20850067]
[1762275760656,14.45713238,102010.0,102000.0,18.20850067]
[1762275760875,14.45213239,102010.0,102000.0,18.20850067]
[1762275761095,14.41213238,102010.0,102000.0,18.20850067]
[1762275761307,15.03031786,102010.0,102000.0,18.20850067]
[1762275761979,15.04031785,102010.0,102000.0,18.20850067]
[1762275762395,14.99031785,102010.0,102000.0,18.2085846]
[1762275762632,15.01431785,102010.0,102000.0,18.2085846]
[1762275762842,15.01431785,102010.0,102000.0,17.75472251]
[1762275763057,15.00431786,102010.0,102000.0,17.75472251]
[1762275763268,14.43113239,102010.0,102000.0,17.75472251]